Workbook

Sheet Synthèse
B1: REGLEMENTS EUROPEENS
B4: Paiements des prestations en espèces d'incapacité temporaire
B5: ="(assurances maladie-maternité et/ou paternité) en "&Détaillé!$U$2 -> (assurances maladie-maternité et/ou paternité) en 2016
C7: Résidence hors de l'Etat compétent | F7: Séjour temporaire-Transfert de résidence autorisé | I7: Total des
B8: Pays | C8: Nombre de | D8: Nombre de jours | E8: Montant | F8: Nombre de | G8: Nombre de jours | H8: Montant | I8: montants
C9: bénéficiaires | D9: indemnisés | E9: (euros) | F9: bénéficiaires | G9: indemnisés | H9: (euros) | I9: (euros)
B10: Allemagne | C10: 387 | D10: 18683 | E10: 710260.3 | F10: 265 | G10: 2683 | H10: 96130.08 | I10: 806390.38
B11: Autriche | C11: 7 | D11: 359 | E11: 15988.1 | F11: 79 | G11: 698 | H11: 23072.93 | I11: 39061.03
B12: Belgique | C12: 1843 | D12: 104652 | E12: 3878680.7 | F12: 184 | G12: 2699 | H12: 95790.54 | I12: 3974471.24
B13: Bulgarie | C13: 2 | D13: 90 | E13: 2778.78 | F13: 25 | G13: 673 | H13: 23042.12 | I13: 25820.9 | L13: 1 | M13: =INDEX($B$10:$I$40,MATCH(LARGE($I$10:$I$40,$L13),$I$10:$I$40,0),1) -> Belgique | N13: =INDEX($B$10:$I$40,MATCH(LARGE($I$10:$I$40,$L13),$I$10:$I$40,0),8) -> 3974471.24 | O13: =MAX(I10:I40)*1.1 -> 4371918.364
B14: Chypre | C14: 1 | D14: 8 | E14: 239.44 | F14: 2 | G14: 18 | H14: 388.9 | I14: 628.34 | L14: =L13+1 -> 2 | M14: =INDEX($B$10:$I$40,MATCH(LARGE($I$10:$I$40,$L14),$I$10:$I$40,0),1) -> Portugal | N14: =INDEX($B$10:$I$40,MATCH(LARGE($I$10:$I$40,$L14),$I$10:$I$40,0),8) -> 2163760.21
B15: Croatie | C15: 0 | D15: 0 | E15: 0 | F15: 65 | G15: 958 | H15: 35823.17 | I15: 35823.17 | L15: =L14+1 -> 3 | M15: =INDEX($B$10:$I$40,MATCH(LARGE($I$10:$I$40,$L15),$I$10:$I$40,0),1) -> Espagne | N15: =INDEX($B$10:$I$40,MATCH(LARGE($I$10:$I$40,$L15),$I$10:$I$40,0),8) -> 828044.49
B16: Danemark | C16: 0 | D16: 0 | E16: 0 | F16: 7 | G16: 62 | H16: 2305.9 | I16: 2305.9 | L16: 4 | M16: =INDEX($B$10:$I$40,MATCH(LARGE($I$10:$I$40,$L16),$I$10:$I$40,0),1) -> Italie | N16: =INDEX($B$10:$I$40,MATCH(LARGE($I$10:$I$40,$L16),$I$10:$I$40,0),8) -> 810227.45
B17: Espagne | C17: 46 | D17: 1155 | E17: 40221.86 | F17: =1569+3 -> 1572 | G17: =22875+22 -> 22897 | H17: =787241.67+580.96 -> 787822.63 | I17: =827463.53+580.96 -> 828044.49 | L17: 5 | M17: =INDEX($B$10:$I$40,MATCH(LARGE($I$10:$I$40,$L17),$I$10:$I$40,0),1) -> Allemagne | N17: =INDEX($B$10:$I$40,MATCH(LARGE($I$10:$I$40,$L17),$I$10:$I$40,0),8) -> 806390.38
B18: Estonie | C18: 0 | D18: 0 | E18: 0 | F18: 1 | G18: 4 | H18: 162.84 | I18: 162.84
B19: Finlande | C19: 0 | D19: 0 | E19: 0 | F19: 7 | G19: 195 | H19: 11102.1 | I19: 11102.1
B20: Grèce | C20: 2 | D20: 15 | E20: 394.38 | F20: 214 | G20: 2660 | H20: 90314.62 | I20: 90709
B21: Hongrie | C21: 93 | D21: 4660 | E21: 119336.05 | F21: 19 | G21: 158 | H21: 6536.49 | I21: 125872.54
B22: Irlande | C22: 2 | D22: 262 | E22: 9843.84 | F22: 37 | G22: 362 | H22: 12173.11 | I22: 22016.95
B23: Islande | C23: 0 | D23: 0 | E23: 0 | F23: 3 | G23: 45 | H23: 2714.68 | I23: 2714.68
B24: Italie | C24: 261 | D24: 11712 | E24: 380249.7 | F24: 746 | G24: 11093 | H24: 429977.75 | I24: 810227.45
B25: Lettonie | C25: 1 | D25: 32 | E25: 1209.6 | F25: 1 | G25: 44 | H25: 729 | I25: 1938.6
B26: Liechtenstein | C26: 0 | D26: 0 | E26: 0 | F26: 0 | G26: 0 | H26: 0 | I26: 0
B27: Lituanie | C27: 0 | D27: 0 | E27: 0 | F27: 5 | G27: 101 | H27: 3736.2 | I27: 3736.2
B28: Luxembourg | C28: 67 | D28: 3486 | E28: 157642.03 | F28: 26 | G28: 920 | H28: 30045.69 | I28: 187687.72
B29: Malte | C29: 0 | D29: 0 | E29: 0 | F29: 14 | G29: 145 | H29: 5789.97 | I29: 5789.97
B30: Norvège | C30: 0 | D30: 0 | E30: 0 | F30: 13 | G30: 138 | H30: 4845.48 | I30: 4845.48
B31: Pays-Bas | C31: 2 | D31: 123 | E31: 8613.39 | F31: 57 | G31: 453 | H31: 16428.52 | I31: 25041.91
B32: Pologne | C32: 20 | D32: 359 | E32: 12339.19 | F32: 160 | G32: 3428 | H32: 113795.75 | I32: 126134.94
B33: Portugal | C33: 57 | D33: 2784 | E33: 83619.05 | F33: =2621+1 -> 2622 | G33: =63176+8 -> 63184 | H33: =2079879.16+262 -> 2080141.16 | I33: =2163498.21+262 -> 2163760.21
B34: République tchèque | C34: 2 | D34: 71 | E34: 1984.2 | F34: 24 | G34: 277 | H34: 7952.49 | I34: 9936.69
B35: Roumanie | C35: 7 | D35: 296 | E35: 8801.42 | F35: 67 | G35: 1235 | H35: 38194.96 | I35: 46996.38
B36: Royaume-Uni | C36: 10 | D36: 119 | E36: 4342.71 | F36: 170 | G36: 1666 | H36: 62613.24 | I36: 66955.95
B37: Slovaquie | C37: 4 | D37: 388 | E37: 11687.79 | F37: 3 | G37: 43 | H37: 2576.84 | I37: 14264.63
B38: Slovénie | C38: 1 | D38: 8 | E38: 128.25 | F38: 3 | G38: 36 | H38: 1146.86 | I38: 1275.11
B39: Suède | C39: 0 | D39: 0 | E39: 0 | F39: 17 | G39: 414 | H39: 13448.12 | I39: 13448.12
B40: Suisse | C40: 58 | D40: 1708 | E40: 103967.92 | F40: 138 | G40: 1786 | H40: 74982.84 | I40: 178950.76
B41: ="Total "&Détaillé!$U$2 -> Total 2016 | C41: =SUM(C10:C40) -> 2873 | D41: =SUM(D10:D40) -> 150970 | E41: 5552328.7 | F41: 6546 | G41: 119075 | H41: =SUM(H10:H40) -> 4073784.98 | I41: =SUM(I10:I40) -> 9626113.68
B42: ="Total "&Détaillé!$U$2-1 -> Total 2015 | C42: 2623 | D42: 140125 | E42: 5122265.18 | F42: 6118 | G42: 118747 | H42: 3809456.4 | I42: 8934949.66
B43: % évolution | C43: =IF(C42<>0,(C41-C42)/C42*100,"-") -> 9.531071292 | D43: =IF(D42<>0,(D41-D42)/D42*100,"-") -> 7.739518287 | E43: 8.3959636 | F43: 6.995750245 | G43: 0.2762175044 | H43: 6.938748006 | I43: 7.735511069
A51: Evolution sur 10 ans des prestations en espèces d'incapacité temporaire (assurances maladie-maternité et/ou paternité)
B53: Résidence hors de l'Etat compétent | E53: Séjour temporaire/Transfert de résidence autorisé | H53: Total
B54: Nombre de | C54: Nombre | D54: Montant | E54: Nombre de | F54: Nombre | G54: Montant | H54: Nombre de | I54: Montant | K54: %
A55: Année | B55: béné- | C55: de jours | D55: (euros) | E55: béné- | F55: de jours | G55: (euros) | H55: bénéfi | I55: (euros) | K55: évolution
B56: ficiaires | C56: indemnisés | E56: ficiaires | F56: indemnisés | H56: ciaires
A57: 2007 | B57: 1433 | C57: 66513 | D57: 2112326.02 | E57: 8229 | F57: 199196 | G57: 6369600.64 | H57: =B57+E57 -> 9662 | I57: 8499891.2 | J57: (a)
A58: 2008 | B58: 1799 | C58: 84898 | D58: 2613778.73 | E58: 7989 | F58: 183880 | G58: 5869647.24 | H58: =B58+E58 -> 9788 | I58: 8483425.97 | K58: =(I58-I57)/I57*100 -> -0.1937110677
A59: 2009 | B59: 1835 | C59: 87992 | D59: 2952214.07 | E59: 7832 | F59: 182658 | G59: 6087568.14 | H59: 9667 | I59: 9040136.72 | J59: (b) | K59: 6.562334038
A60: 2010 | B60: 1726 | C60: 86594 | D60: 3118882.2 | E60: 7184 | F60: 158989 | G60: 5369563.24 | H60: 8910 | I60: 8490308.19 | J60: (c) | K60: -6.08208202
A61: 2011 | B61: 2258 | C61: 118242 | D61: 4114902.07 | E61: 7344 | F61: 174194 | G61: 5948145.96 | H61: 9602 | I61: 10064987.81 | J61: (d) | K61: 18.54678988
A62: 2012 | B62: 2345 | C62: 118781 | D62: 4129499.36 | E62: 6478 | F62: 131049 | G62: 4574646.77 | H62: 8823 | I62: 8707052.61 | J62: (e) | K62: -13.49167257
A63: 2013 | B63: 2714 | C63: 129807 | D63: 4709261.91 | E63: 6317 | F63: 121107 | G63: 3911455 | H63: 9031 | I63: 8620716.91 | K63: -0.9915605644
A64: 2014 | B64: 2543 | C64: 131063 | D64: 4708218.96 | E64: 6615 | F64: 131903 | G64: 4960360.8 | H64: 9158 | I64: 9668579.76 | K64: 12.15517063
A65: 2015 | B65: 2623 | C65: 140125 | D65: 5122265.18 | E65: 6118 | F65: 118747 | G65: 3809456.4 | H65: 8741 | I65: 8934949.66 | J65: (f) | K65: -7.587775229
A66: 2016 | B66: 2873 | C66: 150970 | D66: 5552328.7 | E66: 6546 | F66: 119075 | G66: 4073784.98 | H66: 9419 | I66: 9626113.68 | K66: 7.735511069
B68: (a) : y compris 17 964,54 € pour la Suisse en situation de "recherche d'emploi".
B69: (b) : y compris 354,51 € pour l'Autriche en situation de "recherche d'emploi".
B70: (c) : y compris 458,88 € pour la Belgique, 866,6 € pour la Bulgarie et 537,27 € pour la Lituanie en situation de "recherche d'emploi".
B71: (d) : y compris 80,00 € pour l'Autriche, 1 822,50 € pour l'Espagne et 37,28 € pour les Pays-Bas en situation de "recherche d'emploi".
B72: (e) : y compris 2 906,48 € pour l'Allemagne en situation de "recherche d'emploi".
B73: (f) : y compris 3 228,08 € pour la Suisse en situation de "recherche d'emploi".

Sheet Détaillé
A1: REGLEMENTS EUROPEENS | T1: 25 | U1: =INDEX(ListePays,$T$1,2) -> A172
U2: 2016
O3: Aller directement vers :
A5: Paiements des prestations en espèces d'incapacité temporaire
A6: (assurances maladie-maternité et/ou paternité)
C8: Résidence hors de l'Etat compétent | F8: Séjour temporaire-Transfert autorisé | I8: Total des
A9: Pays | B9: Régime | C9: Nombre de | D9: Nombre de jours | E9: Montant | F9: Nombre de | G9: Nombre de jours | H9: Montant | I9: montants
C10: bénéficiaires | D10: indemnisés | E10: (euros) | F10: bénéficiaires | G10: indemnisés | H10: (euros) | I10: (euros)
B11: Général | C11: 387 | D11: 18683 | E11: 710260.3 | F11: 265 | G11: 2683 | H11: 96130.08 | I11: 806390.38
B12: Agricole | C12: 0 | D12: 0 | E12: 0 | F12: 0 | G12: 0 | H12: 0 | I12: 0
B13: Minier | C13: 0 | D13: 0 | E13: 0 | F13: 0 | G13: 0 | H13: 0 | I13: 0
A14: Allemagne | B14: Clercs de notaire | C14: 0 | D14: 0 | E14: 0 | F14: 0 | G14: 0 | H14: 0 | I14: 0
B15: Total 2016 | C15: =SUM(C11:C14) -> 387 | D15: 18683 | E15: 710260.3 | F15: 265 | G15: 2683 | H15: 96130.08 | I15: 806390.38
B16: Total 2015 | C16: 331 | D16: 12834 | E16: 481854.43 | F16: 242 | G16: 3675 | H16: 130367.34 | I16: 612221.77
B17: % d'évolution | C17: =IF(C16<> 0,((C15-C16)/C16*100)," - ") -> 16.918429 | D17: =IF(D16<>0,((D15-D16)/D16*100)," - ") -> 45.57425588 | E17: 47.40142578 | F17: 9.504132231 | G17: -26.99319728 | H17: -26.2621451 | I17: 31.71540437
B18: Général | C18: 6 | D18: 247 | E18: 10420.57 | F18: 79 | G18: 698 | H18: 23072.93 | I18: 33493.5
B19: Agricole | C19: 1 | D19: 112 | E19: 5567.53 | F19: 0 | G19: 0 | H19: 0 | I19: 5567.53
B20: Minier | C20: 0 | D20: 0 | E20: 0 | F20: 0 | G20: 0 | H20: 0 | I20: 0
A21: Autriche | B21: Clercs de notaire | C21: 0 | D21: 0 | E21: 0 | F21: 0 | G21: 0 | H21: 0 | I21: 0
B22: Total 2016 | C22: =SUM(C18:C21) -> 7 | D22: 359 | E22: 15988.1 | F22: 79 | G22: 698 | H22: 23072.93 | I22: =SUM(I18:I21) -> 39061.03
B23: Total 2015 | C23: 2 | D23: 24 | E23: 1127.35 | F23: 95 | G23: 919 | H23: 29194.03 | I23: 30321.38
B24: % d'évolution | C24: =IF(C23<> 0,((C22-C23)/C23*100)," - ") -> 250 | D24: =IF(D23<>0,((D22-D23)/D23*100)," - ") -> 1395.833333 | E24: 1318.201978 | F24: -16.84210526 | G24: -24.04787813 | H24: -20.96695797 | I24: 28.82339128
B25: Général | C25: 1795 | D25: 101945 | E25: 3780651.18 | F25: 184 | G25: 2699 | H25: 95790.54 | I25: 3876441.72
B26: Agricole | C26: 38 | D26: 2050 | E26: 62131.52 | F26: 0 | G26: 0 | H26: 0 | I26: 62131.52
B27: Minier | C27: 0 | D27: 0 | E27: 0 | F27: 0 | G27: 0 | H27: 0 | I27: 0
A28: Belgique | B28: Clercs de notaire | C28: 10 | D28: 657 | E28: 35898 | F28: 0 | G28: 0 | H28: 0 | I28: 35898
B29: Total 2016 | C29: =SUM(C25:C28) -> 1843 | D29: 104652 | E29: 3878680.7 | F29: 184 | G29: 2699 | H29: 95790.54 | I29: =SUM(I25:I28) -> 3974471.24
B30: Total 2015 | C30: 1731 | D30: 101476 | E30: 3759720.85 | F30: 203 | G30: 4199 | H30: 150934.68 | I30: 3910655.53
B31: % d'évolution | C31: =IF(C30<> 0,((C29-C30)/C30*100)," - ") -> 6.470248411 | D31: =IF(D30<>0,((D29-D30)/D30*100)," - ") -> 3.129804092 | E31: 3.164060704 | F31: -9.359605911 | G31: -35.72279114 | H31: -36.53510247 | I31: 1.631841759
B32: Général | C32: 2 | D32: 90 | E32: 2778.78 | F32: 25 | G32: 673 | H32: 23042.12 | I32: 25820.9
B33: Agricole | C33: 0 | D33: 0 | E33: 0 | F33: 0 | G33: 0 | H33: 0 | I33: 0
B34: Minier | C34: 0 | D34: 0 | E34: 0 | F34: 0 | G34: 0 | H34: 0 | I34: 0
A35: Bulgarie | B35: Clercs de notaire | C35: 0 | D35: 0 | E35: 0 | F35: 0 | G35: 0 | H35: 0 | I35: 0
B36: Total 2016 | C36: =SUM(C32:C35) -> 2 | D36: 90 | E36: 2778.78 | F36: 25 | G36: 673 | H36: 23042.12 | I36: 25820.9
B37: Total 2015 | C37: 0 | D37: 0 | E37: 0 | F37: 33 | G37: 631 | H37: 20102.64 | I37: 20102.64
B38: % d'évolution | C38: =IF(C37<> 0,((C36-C37)/C37*100)," - ") -> - | D38: =IF(D37<>0,((D36-D37)/D37*100)," - ") -> - | E38: - | F38: -24.24242424 | G38: 6.656101426 | H38: 14.62235806 | I38: 28.44531862
B39: Général | C39: 1 | D39: 8 | E39: 239.44 | F39: 2 | G39: 18 | H39: 388.9 | I39: 628.34
B40: Agricole | C40: 0 | D40: 0 | E40: 0 | F40: 0 | G40: 0 | H40: 0 | I40: 0
B41: Minier | C41: 0 | D41: 0 | E41: 0 | F41: 0 | G41: 0 | H41: 0 | I41: 0
A42: Chypre | B42: Clercs de notaire | C42: 0 | D42: 0 | E42: 0 | F42: 0 | G42: 0 | H42: 0 | I42: 0
B43: Total 2016 | C43: =SUM(C39:C42) -> 1 | D43: 8 | E43: 239.44 | F43: 2 | G43: 18 | H43: 388.9 | I43: 628.34
B44: Total 2015 | C44: 0 | D44: 0 | E44: 0 | F44: 6 | G44: 99 | H44: 3502.09 | I44: 3502.09
B45: % d'évolution | C45: =IF(C44<> 0,((C43-C44)/C44*100)," - ") -> - | D45: =IF(D44<>0,((D43-D44)/D44*100)," - ") -> - | E45: - | F45: -66.66666667 | G45: -81.81818182 | H45: -88.89520258 | I45: -82.05814242
B46: Général | C46: 0 | D46: 0 | E46: 0 | F46: 65 | G46: 958 | H46: 35823.17 | I46: 35823.17
B47: Agricole | C47: 0 | D47: 0 | E47: 0 | F47: 0 | G47: 0 | H47: 0 | I47: 0
B48: Minier | C48: 0 | D48: 0 | E48: 0 | F48: 0 | G48: 0 | H48: 0 | I48: 0
A49: Croatie | B49: Clercs de notaire | C49: 0 | D49: 0 | E49: 0 | F49: 0 | G49: 0 | H49: 0 | I49: 0
B50: Total 2016 | C50: =SUM(C46:C49) -> 0 | D50: 0 | E50: 0 | F50: 65 | G50: 958 | H50: 35823.17 | I50: =SUM(I46:I49) -> 35823.17
B51: Total 2015 | C51: 2 | D51: 12 | E51: 440.8 | F51: 58 | G51: 927 | H51: 30227.32 | I51: 30668.12
B52: % d'évolution | C52: =IF(C51<> 0,((C50-C51)/C51*100)," - ") -> -100 | D52: =IF(D51<>0,((D50-D51)/D51*100)," - ") -> -100 | E52: -100 | F52: 12.06896552 | G52: 3.34412082 | H52: 18.51255751 | I52: 16.80914904
B53: Général | C53: 0 | D53: 0 | E53: 0 | F53: 7 | G53: 62 | H53: 2305.9 | I53: 2305.9
B54: Agricole | C54: 0 | D54: 0 | E54: 0 | F54: 0 | G54: 0 | H54: 0 | I54: 0
B55: Minier | C55: 0 | D55: 0 | E55: 0 | F55: 0 | G55: 0 | H55: 0 | I55: 0
A56: Danemark | B56: Clercs de notaire | C56: 0 | D56: 0 | E56: 0 | F56: 0 | G56: 0 | H56: 0 | I56: 0
B57: Total 2016 | C57: =SUM(C53:C56) -> 0 | D57: 0 | E57: 0 | F57: 7 | G57: 62 | H57: 2305.9 | I57: =SUM(I53:I56) -> 2305.9
B58: Total 2015 | C58: 1 | D58: 113 | E58: 8221 | F58: 21 | G58: 296 | H58: 10153.03 | I58: 18374.03
B59: % d'évolution | C59: =IF(C58<> 0,((C57-C58)/C58*100)," - ") -> -100 | D59: =IF(D58<>0,((D57-D58)/D58*100)," - ") -> -100 | E59: -100 | F59: -66.66666667 | G59: -79.05405405 | H59: -77.28855327 | I59: -87.45022186
B60: Général | C60: 36 | D60: 540 | E60: 17959.24 | F60: =1567+3 -> 1570 | G60: =22773+22 -> 22795 | H60: =785360.69+580.96 -> 785941.65 | I60: =803319.93+580.96 -> 803900.89
B61: Agricole | C61: 10 | D61: 615 | E61: 22262.62 | F61: 2 | G61: 102 | H61: 1880.98 | I61: 24143.6
B62: Minier | C62: 0 | D62: 0 | E62: 0 | F62: 0 | G62: 0 | H62: 0 | I62: 0
A63: Espagne | B63: Clercs de notaire | C63: 0 | D63: 0 | E63: 0 | F63: 0 | G63: 0 | H63: 0 | I63: 0
B64: Total 2016 | C64: =SUM(C60:C63) -> 46 | D64: 1155 | E64: 40221.86 | F64: 1572 | G64: 22897 | H64: 787822.63 | I64: 828044.49
B65: Total 2015 | C65: 25 | D65: 1092 | E65: 45335.7 | F65: 1486 | G65: 23892 | H65: 806664.84 | I65: 852000.54
B66: % d'évolution | C66: =IF(C65<> 0,((C64-C65)/C65*100)," - ") -> 84 | D66: =IF(D65<>0,((D64-D65)/D65*100)," - ") -> 5.769230769 | E66: -11.27994053 | F66: 5.787348587 | G66: -4.164573916 | H66: -2.335816446 | I66: -2.811741176
B67: Général | C67: 0 | D67: 0 | E67: 0 | F67: 1 | G67: 4 | H67: 162.84 | I67: 162.84
B68: Agricole | C68: 0 | D68: 0 | E68: 0 | F68: 0 | G68: 0 | H68: 0 | I68: 0
B69: Minier | C69: 0 | D69: 0 | E69: 0 | F69: 0 | G69: 0 | H69: 0 | I69: 0
A70: Estonie | B70: Clercs de notaire | C70: 0 | D70: 0 | E70: 0 | F70: 0 | G70: 0 | H70: 0 | I70: 0
B71: Total 2016 | C71: =SUM(C67:C70) -> 0 | D71: 0 | E71: 0 | F71: 1 | G71: 4 | H71: 162.84 | I71: =SUM(I67:I70) -> 162.84
B72: Total 2015 | C72: 0 | D72: 0 | E72: 0 | F72: 2 | G72: 37 | H72: 1248.45 | I72: 1248.45
B73: % d'évolution | C73: =IF(C72<> 0,((C71-C72)/C72*100)," - ") -> - | D73: =IF(D72<>0,((D71-D72)/D72*100)," - ") -> - | E73: - | F73: -50 | G73: -89.18918919 | H73: -86.95662622 | I73: -86.95662622
B74: Général | C74: 0 | D74: 0 | E74: 0 | F74: 7 | G74: 195 | H74: 11102.1 | I74: 11102.1
B75: Agricole | C75: 0 | D75: 0 | E75: 0 | F75: 0 | G75: 0 | H75: 0 | I75: 0
B76: Minier | C76: 0 | D76: 0 | E76: 0 | F76: 0 | G76: 0 | H76: 0 | I76: 0
A77: Finlande | B77: Clercs de notaire | C77: 0 | D77: 0 | E77: 0 | F77: 0 | G77: 0 | H77: 0 | I77: 0
B78: Total 2016 | C78: =SUM(C74:C77) -> 0 | D78: 0 | E78: 0 | F78: 7 | G78: 195 | H78: 11102.1 | I78: =SUM(I74:I77) -> 11102.1
B79: Total 2015 | C79: 1 | D79: 71 | E79: 5844.72 | F79: 5 | G79: 66 | H79: 2496.18 | I79: 8340.9
B80: % d'évolution | C80: =IF(C79<> 0,((C78-C79)/C79*100)," - ") -> -100 | D80: =IF(D79<>0,((D78-D79)/D79*100)," - ") -> -100 | E80: -100 | F80: 40 | G80: 195.4545455 | H80: 344.7635988 | I80: 33.10434126
B81: Général | C81: 2 | D81: 15 | E81: 394.38 | F81: 214 | G81: 2660 | H81: 90314.62 | I81: 90709
B82: Agricole | C82: 0 | D82: 0 | E82: 0 | F82: 0 | G82: 0 | H82: 0 | I82: 0
B83: Minier | C83: 0 | D83: 0 | E83: 0 | F83: 0 | G83: 0 | H83: 0 | I83: 0
A84: Grèce | B84: Clercs de notaire | C84: 0 | D84: 0 | E84: 0 | F84: 0 | G84: 0 | H84: 0 | I84: 0
B85: Total 2016 | C85: =SUM(C81:C84) -> 2 | D85: 15 | E85: 394.38 | F85: 214 | G85: 2660 | H85: 90314.62 | I85: 90709
B86: Total 2015 | C86: 1 | D86: 4 | E86: 96.84 | F86: 225 | G86: 3591 | H86: 123129.49 | I86: 123226.33
B87: % d'évolution | C87: =IF(C86<> 0,((C85-C86)/C86*100)," - ") -> 100 | D87: =IF(D86<>0,((D85-D86)/D86*100)," - ") -> 275 | E87: 307.2490706 | F87: -4.888888889 | G87: -25.92592593 | H87: -26.65069919 | I87: -26.38829705
B88: Général | C88: 93 | D88: 4660 | E88: 119336.05 | F88: 19 | G88: 158 | H88: 6536.49 | I88: 125872.54
B89: Agricole | C89: 0 | D89: 0 | E89: 0 | F89: 0 | G89: 0 | H89: 0 | I89: 0
B90: Minier | C90: 0 | D90: 0 | E90: 0 | F90: 0 | G90: 0 | H90: 0 | I90: 0
A91: Hongrie | B91: Clercs de notaire | C91: 0 | D91: 0 | E91: 0 | F91: 0 | G91: 0 | H91: 0 | I91: 0
B92: Total 2016 | C92: =SUM(C88:C91) -> 93 | D92: 4660 | E92: 119336.05 | F92: 19 | G92: 158 | H92: 6536.49 | I92: =SUM(I88:I91) -> 125872.54
B93: Total 2015 | C93: 74 | D93: 2701 | E93: 73368.79 | F93: 29 | G93: 358 | H93: 11609.86 | I93: 84978.65
B94: % d'évolution | C94: =IF(C93<> 0,((C92-C93)/C93*100)," - ") -> 25.67567568 | D94: =IF(D93<>0,((D92-D93)/D93*100)," - ") -> 72.52869308 | E94: 62.65233487 | F94: -34.48275862 | G94: -55.86592179 | H94: -43.69880429 | I94: 48.12254607
B95: Général | C95: 2 | D95: 262 | E95: 9843.84 | F95: 37 | G95: 362 | H95: 12173.11 | I95: 22016.95
B96: Agricole | C96: 0 | D96: 0 | E96: 0 | F96: 0 | G96: 0 | H96: 0 | I96: 0
B97: Minier | C97: 0 | D97: 0 | E97: 0 | F97: 0 | G97: 0 | H97: 0 | I97: 0
A98: Irlande | B98: Clercs de notaire | C98: 0 | D98: 0 | E98: 0 | F98: 0 | G98: 0 | H98: 0 | I98: 0
B99: Total 2016 | C99: =SUM(C95:C98) -> 2 | D99: 262 | E99: 9843.84 | F99: 37 | G99: 362 | H99: 12173.11 | I99: =SUM(I95:I98) -> 22016.95
B100: Total 2015 | C100: 1 | D100: 77 | E100: 2930.97 | F100: 42 | G100: 390 | H100: 13118.91 | I100: 16049.88
B101: % d'évolution | C101: =IF(C100<> 0,((C99-C100)/C100*100)," - ") -> 100 | D101: =IF(D100<>0,((D99-D100)/D100*100)," - ") -> 240.2597403 | E101: 235.8560477 | F101: -11.9047619 | G101: -7.179487179 | H101: -7.209440418 | I101: 37.1782842
B102: Général | C102: 0 | D102: 0 | E102: 0 | F102: 3 | G102: 45 | H102: 2714.68 | I102: 2714.68
B103: Agricole | C103: 0 | D103: 0 | E103: 0 | F103: 0 | G103: 0 | H103: 0 | I103: 0
B104: Minier | C104: 0 | D104: 0 | E104: 0 | F104: 0 | G104: 0 | H104: 0 | I104: 0
A105: Islande | B105: Clercs de notaire | C105: 0 | D105: 0 | E105: 0 | F105: 0 | G105: 0 | H105: 0 | I105: 0
B106: Total 2016 | C106: =SUM(C102:C105) -> 0 | D106: 0 | E106: 0 | F106: 3 | G106: 45 | H106: 2714.68 | I106: =SUM(I102:I105) -> 2714.68
B107: Total 2015 | C107: 0 | D107: 0 | E107: 0 | F107: 5 | G107: 74 | H107: 3030.36 | I107: 3030.36
B108: % d'évolution | C108: =IF(C107<> 0,((C106-C107)/C107*100)," - ") -> - | D108: =IF(D107<>0,((D106-D107)/D107*100)," - ") -> - | E108: - | F108: -40 | G108: -39.18918919 | H108: -10.41724416 | I108: -10.41724416
B109: Général | C109: 261 | D109: 11712 | E109: 380249.7 | F109: 746 | G109: 11093 | H109: 429977.75 | I109: 810227.45
B110: Agricole | C110: 0 | D110: 0 | E110: 0 | F110: 0 | G110: 0 | H110: 0 | I110: 0
B111: Minier | C111: 0 | D111: 0 | E111: 0 | F111: 0 | G111: 0 | H111: 0 | I111: 0
A112: Italie | B112: Clercs de notaire | C112: 0 | D112: 0 | E112: 0 | F112: 0 | G112: 0 | H112: 0 | I112: 0
B113: Total 2016 | C113: =SUM(C109:C112) -> 261 | D113: 11712 | E113: 380249.7 | F113: 746 | G113: 11093 | H113: 429977.75 | I113: 810227.45
B114: Total 2015 | C114: 294 | D114: 14583 | E114: 459536.73 | F114: 743 | G114: 12794 | H114: 396338.72 | I114: 855875.45
B115: % d'évolution | C115: =IF(C114<> 0,((C113-C114)/C114*100)," - ") -> -11.2244898 | D115: =IF(D114<>0,((D113-D114)/D114*100)," - ") -> -19.68730714 | E115: -17.25368721 | F115: 0.4037685061 | G115: -13.29529467 | H115: 8.48744478 | I115: -5.333486315
B116: Général | C116: 1 | D116: 32 | E116: 1209.6 | F116: 1 | G116: 44 | H116: 729 | I116: 1938.6
B117: Agricole | C117: 0 | D117: 0 | E117: 0 | F117: 0 | G117: 0 | H117: 0 | I117: 0
B118: Minier | C118: 0 | D118: 0 | E118: 0 | F118: 0 | G118: 0 | H118: 0 | I118: 0
A119: Lettonie | B119: Clercs de notaire | C119: 0 | D119: 0 | E119: 0 | F119: 0 | G119: 0 | H119: 0 | I119: 0
B120: Total 2016 | C120: =SUM(C116:C119) -> 1 | D120: 32 | E120: 1209.6 | F120: 1 | G120: 44 | H120: 729 | I120: =SUM(I116:I119) -> 1938.6
B121: Total 2015 | C121: 1 | D121: 22 | E121: 831.6 | F121: 1 | G121: 90 | H121: 2217.6 | I121: 3049.2
B122: % d'évolution | C122: =IF(C121<> 0,((C120-C121)/C121*100)," - ") -> 0 | D122: =IF(D121<>0,((D120-D121)/D121*100)," - ") -> 45.45454545 | E122: 45.45454545 | F122: 0 | G122: -51.11111111 | H122: -67.12662338 | I122: -36.42266824
B123: Général | C123: 0 | D123: 0 | E123: 0 | F123: 0 | G123: 0 | H123: 0 | I123: 0
B124: Agricole | C124: 0 | D124: 0 | E124: 0 | F124: 0 | G124: 0 | H124: 0 | I124: 0
B125: Minier | C125: 0 | D125: 0 | E125: 0 | F125: 0 | G125: 0 | H125: 0 | I125: 0
A126: Liechtenstein | B126: Clercs de notaire | C126: 0 | D126: 0 | E126: 0 | F126: 0 | G126: 0 | H126: 0 | I126: 0
B127: Total 2016 | C127: =SUM(C123:C126) -> 0 | D127: 0 | E127: 0 | F127: 0 | G127: 0 | H127: 0 | I127: 0
B128: Total 2015 | C128: 0 | D128: 0 | E128: 0 | F128: 0 | G128: 0 | H128: 0 | I128: 0
B129: % d'évolution | C129: =IF(C128<> 0,((C127-C128)/C128*100)," - ") -> - | D129: =IF(D128<>0,((D127-D128)/D128*100)," - ") -> - | E129: - | F129: - | G129: - | H129: - | I129: -
B130: Général | C130: 0 | D130: 0 | E130: 0 | F130: 5 | G130: 101 | H130: 3736.2 | I130: 3736.2
B131: Agricole | C131: 0 | D131: 0 | E131: 0 | F131: 0 | G131: 0 | H131: 0 | I131: 0
B132: Minier | C132: 0 | D132: 0 | E132: 0 | F132: 0 | G132: 0 | H132: 0 | I132: 0
A133: Lituanie | B133: Clercs de notaire | C133: 0 | D133: 0 | E133: 0 | F133: 0 | G133: 0 | H133: 0 | I133: 0
B134: Total 2016 | C134: =SUM(C130:C133) -> 0 | D134: 0 | E134: 0 | F134: 5 | G134: 101 | H134: 3736.2 | I134: =SUM(I130:I133) -> 3736.2
B135: Total 2015 | C135: 0 | D135: 0 | E135: 0 | F135: 1 | G135: 23 | H135: 625.6 | I135: 625.6
B136: % d'évolution | C136: =IF(C135<> 0,((C134-C135)/C135*100)," - ") -> - | D136: =IF(D135<>0,((D134-D135)/D135*100)," - ") -> - | E136: - | F136: 400 | G136: 339.1304348 | H136: 497.2186701 | I136: 497.2186701
B137: Général | C137: 64 | D137: 3354 | E137: 151291.03 | F137: 26 | G137: 920 | H137: 30045.69 | I137: 181336.72
B138: Agricole | C138: 0 | D138: 0 | E138: 0 | F138: 0 | G138: 0 | H138: 0 | I138: 0
B139: Minier | C139: 0 | D139: 0 | E139: 0 | F139: 0 | G139: 0 | H139: 0 | I139: 0
A140: Luxembourg | B140: Clercs de notaire | C140: 3 | D140: 132 | E140: 6351 | F140: 0 | G140: 0 | H140: 0 | I140: 6351
B141: Total 2016 | C141: =SUM(C137:C140) -> 67 | D141: 3486 | E141: 157642.03 | F141: 26 | G141: 920 | H141: 30045.69 | I141: 187687.72
B142: Total 2015 | C142: 71 | D142: 3596 | E142: 155700.93 | F142: 32 | G142: 564 | H142: 24531.53 | I142: 180232.46
B143: % d'évolution | C143: =IF(C142<> 0,((C141-C142)/C142*100)," - ") -> -5.633802817 | D143: =IF(D142<>0,((D141-D142)/D142*100)," - ") -> -3.058954394 | E143: 1.246684911 | F143: -18.75 | G143: 63.12056738 | H143: 22.4778479 | I143: 4.136469091
B144: Général | C144: 0 | D144: 0 | E144: 0 | F144: 14 | G144: 145 | H144: 5789.97 | I144: 5789.97
B145: Agricole | C145: 0 | D145: 0 | E145: 0 | F145: 0 | G145: 0 | H145: 0 | I145: 0
B146: Minier | C146: 0 | D146: 0 | E146: 0 | F146: 0 | G146: 0 | H146: 0 | I146: 0
A147: Malte | B147: Clercs de notaire | C147: 0 | D147: 0 | E147: 0 | F147: 0 | G147: 0 | H147: 0 | I147: 0
B148: Total 2016 | C148: =SUM(C144:C147) -> 0 | D148: 0 | E148: 0 | F148: 14 | G148: 145 | H148: 5789.97 | I148: =SUM(I144:I147) -> 5789.97
B149: Total 2015 | C149: 0 | D149: 0 | E149: 0 | F149: 18 | G149: 203 | H149: 7462.93 | I149: 7462.93
B150: % d'évolution | C150: =IF(C149<> 0,((C148-C149)/C149*100)," - ") -> - | D150: =IF(D149<>0,((D148-D149)/D149*100)," - ") -> - | E150: - | F150: -22.22222222 | G150: -28.57142857 | H150: -22.41693276 | I150: -22.41693276
B151: Général | C151: 0 | D151: 0 | E151: 0 | F151: 13 | G151: 138 | H151: 4845.48 | I151: 4845.48
B152: Agricole | C152: 0 | D152: 0 | E152: 0 | F152: 0 | G152: 0 | H152: 0 | I152: 0
B153: Minier | C153: 0 | D153: 0 | E153: 0 | F153: 0 | G153: 0 | H153: 0 | I153: 0
A154: Norvège | B154: Clercs de notaire | C154: 0 | D154: 0 | E154: 0 | F154: 0 | G154: 0 | H154: 0 | I154: 0
B155: Total 2016 | C155: =SUM(C151:C154) -> 0 | D155: 0 | E155: 0 | F155: 13 | G155: 138 | H155: 4845.48 | I155: =SUM(I151:I154) -> 4845.48
B156: Total 2015 | C156: 0 | D156: 0 | E156: 0 | F156: 12 | G156: 124 | H156: 3628.06 | I156: 3628.06
B157: % d'évolution | C157: =IF(C156<> 0,((C155-C156)/C156*100)," - ") -> - | D157: =IF(D156<>0,((D155-D156)/D156*100)," - ") -> - | E157: - | F157: 8.333333333 | G157: 11.29032258 | H157: 33.55567438 | I157: 33.55567438
B158: Général | C158: 2 | D158: 123 | E158: 8613.39 | F158: 57 | G158: 453 | H158: 16428.52 | I158: 25041.91
B159: Agricole | C159: 0 | D159: 0 | E159: 0 | F159: 0 | G159: 0 | H159: 0 | I159: 0
B160: Minier | C160: 0 | D160: 0 | E160: 0 | F160: 0 | G160: 0 | H160: 0 | I160: 0
A161: Pays-Bas | B161: Clercs de notaire | C161: 0 | D161: 0 | E161: 0 | F161: 0 | G161: 0 | H161: 0 | I161: 0
B162: Total 2016 | C162: =SUM(C158:C161) -> 2 | D162: 123 | E162: 8613.39 | F162: 57 | G162: 453 | H162: 16428.52 | I162: 25041.91
B163: Total 2015 | C163: 1 | D163: 112 | E163: 8890.56 | F163: 62 | G163: 830 | H163: 24444.92 | I163: 33335.48
B164: % d'évolution | C164: =IF(C163<> 0,((C162-C163)/C163*100)," - ") -> 100 | D164: =IF(D163<>0,((D162-D163)/D163*100)," - ") -> 9.821428571 | E164: -3.117576396 | F164: -8.064516129 | G164: -45.42168675 | H164: -32.79372565 | I164: -24.87910779
B165: Général | C165: 17 | D165: 339 | E165: 11831.29 | F165: 160 | G165: 3428 | H165: 113795.75 | I165: 125627.04
B166: Agricole | C166: 3 | D166: 20 | E166: 507.9 | F166: 0 | G166: 0 | H166: 0 | I166: 507.9
B167: Minier | C167: 0 | D167: 0 | E167: 0 | F167: 0 | G167: 0 | H167: 0 | I167: 0
A168: Pologne | B168: Clercs de notaire | C168: 0 | D168: 0 | E168: 0 | F168: 0 | G168: 0 | H168: 0 | I168: 0
B169: Total 2016 | C169: =SUM(C165:C168) -> 20 | D169: 359 | E169: 12339.19 | F169: 160 | G169: 3428 | H169: 113795.75 | I169: =SUM(I165:I168) -> 126134.94
B170: Total 2015 | C170: 15 | D170: 849 | E170: 28598.15 | F170: 141 | G170: 4023 | H170: 131176.16 | I170: 159774.31
B171: % d'évolution | C171: =IF(C170<> 0,((C169-C170)/C170*100)," - ") -> 33.33333333 | D171: =IF(D170<>0,((D169-D170)/D170*100)," - ") -> -57.71495878 | E171: -56.85318806 | F171: 13.4751773 | G171: -14.78995774 | H171: -13.24967128 | I171: -21.05430466
B172: Général | C172: 54 | D172: 2701 | E172: 80740.25 | F172: =2613+1 -> 2614 | G172: =62673+8 -> 62681 | H172: =2072080.5+262 -> 2072342.5 | I172: =2152820.75+262 -> 2153082.75
B173: Agricole | C173: 3 | D173: 83 | E173: 2878.8 | F173: 8 | G173: 503 | H173: 7798.66 | I173: 10677.46
B174: Minier | C174: 0 | D174: 0 | E174: 0 | F174: 0 | G174: 0 | H174: 0 | I174: 0
A175: Portugal | B175: Clercs de notaire | C175: 0 | D175: 0 | E175: 0 | F175: 0 | G175: 0 | H175: 0 | I175: 0
B176: Total 2016 | C176: =SUM(C172:C175) -> 57 | D176: 2784 | E176: 83619.05 | F176: 2622 | G176: 63184 | H176: 2080141.16 | I176: 2163760.21
B177: Total 2015 | C177: 31 | D177: 1104 | E177: 33465.25 | F177: 2300 | G177: 55303 | H177: 1690463.76 | I177: 1723929.01
B178: % d'évolution | C178: =IF(C177<> 0,((C176-C177)/C177*100)," - ") -> 83.87096774 | D178: =IF(D177<>0,((D176-D177)/D177*100)," - ") -> 152.173913 | E178: 149.8682962 | F178: 14 | G178: 14.25058315 | H178: 23.05150866 | I178: 25.51330115
B179: Général | C179: 2 | D179: 71 | E179: 1984.2 | F179: 24 | G179: 277 | H179: 7952.49 | I179: 9936.69
B180: Agricole | C180: 0 | D180: 0 | E180: 0 | F180: 0 | G180: 0 | H180: 0 | I180: 0
B181: Minier | C181: 0 | D181: 0 | E181: 0 | F181: 0 | G181: 0 | H181: 0 | I181: 0
A182: République tchèque | B182: Clercs de notaire | C182: 0 | D182: 0 | E182: 0 | F182: 0 | G182: 0 | H182: 0 | I182: 0
B183: Total 2016 | C183: =SUM(C179:C182) -> 2 | D183: 71 | E183: 1984.2 | F183: 24 | G183: 277 | H183: 7952.49 | I183: 9936.69
B184: Total 2015 | C184: 7 | D184: 493 | E184: 11143.15 | F184: 18 | G184: 594 | H184: 18308.65 | I184: 29451.8
B185: % d'évolution | C185: =IF(C184<> 0,((C183-C184)/C184*100)," - ") -> -71.42857143 | D185: =IF(D184<>0,((D183-D184)/D184*100)," - ") -> -85.59837728 | E185: -82.19354491 | F185: 33.33333333 | G185: -53.36700337 | H185: -56.56430157 | I185: -66.26117928
B186: Général | C186: 7 | D186: 296 | E186: 8801.42 | F186: 67 | G186: 1235 | H186: 38194.96 | I186: 46996.38
B187: Agricole | C187: 0 | D187: 0 | E187: 0 | F187: 0 | G187: 0 | H187: 0 | I187: 0
B188: Minier | C188: 0 | D188: 0 | E188: 0 | F188: 0 | G188: 0 | H188: 0 | I188: 0
A189: Roumanie | B189: Clercs de notaire | C189: 0 | D189: 0 | E189: 0 | F189: 0 | G189: 0 | H189: 0 | I189: 0
B190: Total 2016 | C190: =SUM(C186:C189) -> 7 | D190: 296 | E190: 8801.42 | F190: 67 | G190: 1235 | H190: 38194.96 | I190: =SUM(I186:I189) -> 46996.38
B191: Total 2015 | C191: 4 | D191: 184 | E191: 5844.18 | F191: 44 | G191: 910 | H191: 31648.49 | I191: 37492.67
B192: % d'évolution | C192: =IF(C191<> 0,((C190-C191)/C191*100)," - ") -> 75 | D192: =IF(D191<>0,((D190-D191)/D191*100)," - ") -> 60.86956522 | E192: 50.60145307 | F192: 52.27272727 | G192: 35.71428571 | H192: 20.68493631 | I192: 25.34818139
B193: Général | C193: 10 | D193: 119 | E193: 4342.71 | F193: 170 | G193: 1666 | H193: 62613.24 | I193: 66955.95
B194: Agricole | C194: 0 | D194: 0 | E194: 0 | F194: 0 | G194: 0 | H194: 0 | I194: 0
B195: Minier | C195: 0 | D195: 0 | E195: 0 | F195: 0 | G195: 0 | H195: 0 | I195: 0
A196: Royaume-Uni | B196: Clercs de notaire | C196: 0 | D196: 0 | E196: 0 | F196: 0 | G196: 0 | H196: 0 | I196: 0
B197: Total 2016 | C197: =SUM(C193:C196) -> 10 | D197: 119 | E197: 4342.71 | F197: 170 | G197: 1666 | H197: 62613.24 | I197: 66955.95
B198: Total 2015 | C198: 6 | D198: 251 | E198: 16820.34 | F198: 135 | G198: 1564 | H198: 53154.73 | I198: 69975.07
B199: % d'évolution | C199: =IF(C198<> 0,((C197-C198)/C198*100)," - ") -> 66.66666667 | D199: =IF(D198<>0,((D197-D198)/D198*100)," - ") -> -52.58964143 | E199: -74.18179418 | F199: 25.92592593 | G199: 6.52173913 | H199: 17.79429601 | I199: -4.314565173
B200: Général | C200: 4 | D200: 388 | E200: 11687.79 | F200: 3 | G200: 43 | H200: 2576.84 | I200: 14264.63
B201: Agricole | C201: 0 | D201: 0 | E201: 0 | F201: 0 | G201: 0 | H201: 0 | I201: 0
B202: Minier | C202: 0 | D202: 0 | E202: 0 | F202: 0 | G202: 0 | H202: 0 | I202: 0
... 32 more rows

Sheet Paramètres (hidden)
A2: Allemagne | B2: A11
A3: Autriche | B3: A18
A4: Belgique | B4: A25
A5: Bulgarie | B5: A32
A6: Chypre | B6: A39
A7: Croatie | B7: A46
A8: Danemark | B8: A53
A9: Espagne | B9: A60
A10: Estonie | B10: A67
A11: Finlande | B11: A74
A12: Grèce | B12: A81
A13: Hongrie | B13: A88
A14: Irlande | B14: A95
A15: Islande | B15: A102
A16: Italie | B16: A109
A17: Lettonie | B17: A116
A18: Liechtenstein | B18: A123
A19: Lituanie | B19: A130
A20: Luxembourg | B20: A137
A21: Malte | B21: A144
A22: Norvège | B22: A151
A23: Pays-Bas | B23: A158
A24: Pologne | B24: A165
A25: Portugal | B25: A172
A26: République tchèque | B26: A179
A27: Roumanie | B27: A186
A28: Royaume-Uni | B28: A193
A29: Slovaquie | B29: A200
A30: Slovénie | B30: A207
A31: Suède | B31: A214
A32: Suisse | B32: A221
